bitfinex/quotes_ETHUSD_20260114
["timestamp","ask_amount","ask_price","bid_price","bid_amount"]
[1768425076739,0.82247891,3367.7,3366.8,0.001]
[1768425077311,5.93859492,3367.8,3366.8,0.001]
[1768425077813,6.88332492,3367.8,3366.8,0.001]
[1768425078018,0.94473,3367.7,3365.9,0.93207876]
[1768425078221,9.8531514,3367.6,3366.0,0.93207876]
[1768425078428,1.93004514,3367.5,3366.1,0.40577935]
[1768425078939,1.93004514,3367.5,3366.1,1.33785811]
[1768425079153,2.9694738,3367.6,3366.2,0.93207876]
[1768425079526,2.96920929,3367.9,3366.2,0.93207876]
[1768425079923,5.93841858,3367.9,3366.2,0.93207876]
[1768425080153,0.94473,3367.8,3366.2,0.93207876]
[1768425080330,6.91322295,3367.7,3366.2,3.90276701]
[1768425080535,0.98824513,3367.6,3366.2,4.63069962]
[1768425081275,0.98824513,3367.6,3366.3,0.97923019]
[1768425081567,5.93877126,3367.7,3366.3,0.97923019]
[1768425082461,5.93841858,3367.9,3366.5,0.97923019]
[1768425084734,5.93841858,3367.9,3366.7,0.97923019]
[1768425085945,2.96920929,3367.9,3366.7,0.97923019]
[1768425086158,0.69311558,3367.8,3366.8,0.97923019]
[1768425086333,2.96914462,3368.0,3366.8,0.97923019]
[1768425086533,2.96914462,3368.0,3367.0,0.97923019]
[1768425088165,5.93828924,3368.0,3366.9,0.97923019]
[1768425088462,0.75217637,3367.9,3366.9,0.97923019]
[1768425089164,2.96929746,3367.8,3366.9,0.97923019]
[1768425089332,0.002,3367.7,3366.9,0.97923019]
[1768425089529,0.002,3367.7,3366.9,0.92923019]
[1768425093978,0.002,3367.7,3367.0,0.97923019]
[1768425094164,0.002,3367.7,3367.1,0.97923019]
[1768425096378,0.002,3367.7,3367.1,0.67923019]
[1768425097586,0.002,3367.7,3367.1,3.64912699]
[1768425097958,0.002,3367.7,3367.2,0.97923019]
[1768425098484,0.002,3367.7,3367.3,0.97923019]
[1768425098707,0.002,3367.7,3367.3,1.74034602]
[1768425099196,0.002,3367.7,3367.4,0.97923019]
[1768425101720,0.002,3367.7,3366.8,1.37423019]
[1768425102418,0.002,3367.7,3366.9,0.97923019]
[1768425102599,0.002,3367.7,3366.9,1.37323019]
[1768425102801,0.002,3367.4,3366.9,1.37323019]
[1768425103919,0.002,3367.4,3367.0,2.97000297]
[1768425104116,0.002,3367.4,3367.1,0.73144003]
[1768425105105,0.002,3367.4,3367.1,1.71067022]
[1768425105505,0.002,3367.4,3366.9,2.97005737]
[1768425106495,0.002,3367.4,3366.9,0.97923019]
[1768425108810,0.002,3367.4,3366.8,5.94135878]
[1768425108811,0.002,3367.4,3367.1,0.97923019]
[1768425110038,0.002,3367.4,3366.9,2.97006023]
[1768425110215,0.002,3367.4,3366.9,3.93519916]
[1768425110542,0.002,3367.4,3367.1,0.96513893]
[1768425112053,0.002,3367.4,3367.2,0.96513893]
[1768425112633,0.002,3367.4,3367.0,0.43301992]
[1768425112832,0.002,3367.4,3366.9,2.97003221]
[1768425113129,0.002,3367.4,3367.0,2.96997766]
[1768425113618,0.002,3367.4,3366.9,3.93522626]
[1768425113819,0.002,3367.4,3367.0,2.96995085]
[1768425114547,0.002,3367.4,3367.1,0.96513893]
[1768425114728,0.002,3367.4,3367.2,0.69052292]
[1768425116868,0.002,3367.4,3367.2,4.6254824]
[1768425117045,0.002,3367.7,3367.2,4.6254824]
[1768425117570,0.002,3367.7,3367.3,0.96513893]
[1768425118462,0.9233307,3367.5,3365.0,1.19287665]
[1768425118656,0.9233307,3367.5,3366.0,0.96513893]
[1768425118836,0.9233307,3367.5,3365.1,0.42371679]
[1768425118837,0.9233307,3367.5,3366.2,0.96513893]
[1768425119460,0.9233307,3367.5,3365.9,1.35913893]
[1768425119662,0.9233307,3367.5,3365.9,1.79216567]
[1768425119965,0.9233307,3367.5,3366.0,0.96513893]
[1768425120351,0.9233307,3367.5,3366.0,3.93599984]
[1768425120562,0.9233307,3367.3,3366.1,3.93592774]
[1768425121559,2.96982656,3367.2,3366.2,0.99484601]
[1768425121758,0.68628074,3367.1,3366.2,0.99484601]
[1768425122378,1.60961144,3367.1,3366.2,0.96513893]
[1768425122578,1.60961144,3367.1,3365.5,2.97126155]
[1768425122579,0.58107168,3366.4,3365.1,0.15485748]
[1768425122874,0.58107168,3366.4,3362.7,2.97376989]
[1768425122875,0.75938251,3366.3,3364.8,0.96513893]
[1768425123179,0.58107168,3366.4,3365.0,0.96513893]
[1768425123553,5.94124112,3366.3,3365.0,3.93688425]
[1768425123879,2.97062056,3366.3,3365.1,0.96513893]
[1768425124043,5.94124112,3366.3,3365.1,0.96513893]
[1768425125459,2.97062056,3366.3,3365.1,0.96513893]
[1768425125655,0.69213118,3366.2,3365.2,0.96513893]
[1768425125858,0.58107168,3366.7,3365.2,0.96513893]
[1768425126169,5.94071168,3366.6,3365.2,0.96513893]
[1768425127478,6.52178336,3366.6,3365.2,0.96513893]
[1768425127655,6.52178336,3366.6,3365.3,0.96513893]
[1768425128251,6.52178336,3366.6,3365.4,0.001]
[1768425128452,6.52178336,3366.6,3365.4,0.46385989]
[1768425128453,0.949201,3366.5,3365.4,0.46385989]
[1768425128654,0.68828074,3367.1,3365.5,0.96513893]
[1768425128915,0.68828074,3367.1,3365.7,0.96513893]
[1768425128916,2.97194556,3367.1,3365.7,0.96513893]
[1768425129074,0.002,3367.1,3365.7,0.96513893]
[1768425129584,0.002,3367.1,3365.9,0.96513893]
[1768425130482,0.002,3367.1,3366.1,0.96513893]
[1768425130687,0.58107168,3366.9,3365.4,0.001]
[1768425131171,0.58107168,3366.8,3365.4,0.001]
[1768425131792,6.52160692,3366.7,3365.4,0.001]
[1768425131956,9.49187454,3366.7,3365.4,0.96613893]
[1768425132458,0.58107168,3366.6,3365.4,0.96613893]
[1768425132659,0.94918745,3366.5,3365.4,0.96613893]
[1768425132861,0.74918745,3366.5,3365.4,0.96613893]
[1768425133287,0.58107168,3366.4,3365.4,0.001]
[1768425133665,0.58107168,3366.2,3364.9,0.394]
[1768425134204,0.58107168,3366.2,3363.1,0.96513893]
[1768425134205,0.15485172,3363.8,3363.1,0.96513893]
[1768425134363,0.58107168,3365.5,3363.5,0.96513893]
[1768425134680,0.58107168,3365.5,3363.2,5.97645098]
[1768425134681,0.58107168,3365.5,3363.7,0.96513893]
[1768425134890,0.58107168,3365.5,3363.9,0.96513893]
[1768425135669,0.58107168,3365.5,3364.1,0.96513893]
[1768425135869,0.58107168,3366.0,3364.3,0.96513893]
[1768425136682,0.58107168,3366.0,3364.4,0.394]
[1768425136883,0.58107168,3366.0,3364.4,1.35913893]
[1768425137503,0.58107168,3366.0,3364.5,0.96513893]
[1768425137800,8.91186168,3366.3,3364.5,3.93727292]
[1768425137801,6.52301884,3365.9,3364.5,3.93727292]
[1768425137982,6.52301884,3365.9,3364.6,0.73036088]
[1768425139216,6.52301884,3365.9,3364.6,1.69549981]
[1768425139503,6.52301884,3365.9,3364.7,3.36600903]
[1768425139901,2.97097358,3365.9,3364.8,0.96513893]
[1768425140602,0.58107168,3366.2,3364.8,0.96513893]
[1768425140804,5.94159412,3366.1,3365.0,0.92203003]
[1768425141473,2.97079706,3366.1,3365.1,0.95635666]
[1768425142478,5.94159412,3366.1,3365.1,0.95635666]
[1768425142889,2.97079706,3366.1,3365.1,0.95635666]
[1768425143087,0.002,3366.3,3365.1,0.95635666]
[1768425143408,0.002,3366.3,3365.5,0.95635666]
[1768425143592,0.002,3366.3,3365.7,0.95635666]
[1768425145384,0.002,3366.3,3365.9,0.95635666]
[1768425149311,0.002,3367.1,3366.1,0.95635666]
[1768425149980,0.58307168,3367.1,3366.1,0.95635666]
[1768425150183,1.23554416,3367.1,3366.1,0.95635666]
[1768425150582,0.002,3367.4,3366.1,0.95635666]
[1768425151394,0.002,3367.4,3366.3,0.95635666]
[1768425151612,0.002,3367.4,3366.2,8.91212643]
[1768425151613,0.002,3367.4,3366.5,0.95635666]
[1768425152712,0.002,3367.7,3367.4,0.95635666]
[1768425152911,0.002,3367.7,3367.6,0.95635666]
[1768425154292,0.002,3367.7,3367.6,3.92583046]
[1768425154638,0.002,3367.7,3367.6,0.95635666]
[1768425155503,0.002,3367.7,3367.6,0.394]
[1768425158803,0.002,3367.7,3367.2,2.96981442]
[1768425158804,0.002,3367.7,3367.5,0.394]
[1768425159006,0.002,3367.7,3366.7,0.95635666]
[1768425159326,0.002,3367.7,3366.8,0.394]
[1768425159686,0.002,3367.7,3366.8,3.3641791]
[1768425159893,0.002,3367.7,3366.8,4.32053576]
[1768425160290,0.002,3367.7,3366.9,0.95635666]
[1768425161007,0.002,3367.7,3366.2,0.95635666]
[1768425162204,7.01475338,3367.7,3365.9,0.95635666]
[1768425162400,11.87824792,3367.5,3365.6,0.95635666]
[1768425162601,14.8478099,3367.5,3365.7,0.394]
[1768425163426,8.90868594,3367.5,3365.8,0.95635666]
[1768425163632,8.90868594,3367.5,3366.0,0.95635666]
[1768425165897,11.87824792,3367.5,3366.0,0.95635666]
[1768425166104,1.25945233,3367.4,3366.0,0.95635666]
[1768425166515,5.93947672,3367.3,3366.0,0.95635666]
[1768425166709,8.90921508,3367.3,3366.0,0.95635666]
[1768425167332,8.90921508,3367.3,3366.3,0.001]
[1768425167933,5.93947672,3367.3,3366.3,0.95735666]
[1768425168102,0.72009291,3367.2,3366.3,0.95735666]
[1768425168727,2.96991476,3367.1,3366.3,0.95735666]
[1768425168934,3.68992781,3367.2,3366.3,0.95735666]
[1768425169140,5.9396698,3367.2,3366.3,0.95735666]
[1768425171010,0.002,3367.4,3366.3,0.95735666]
[1768425172910,0.002,3367.4,3366.4,0.9565708]
[1768425173215,0.002,3367.4,3366.6,0.92686548]
[1768425173426,0.002,3367.4,3366.8,0.92686548]
[1768425174404,0.002,3367.4,3366.9,0.92686548]
[1768425175738,0.002,3367.7,3367.4,0.92686548]
[1768425177538,0.002,3367.7,3367.5,0.92686548]
[1768425177718,0.002,3367.7,3367.6,1.32086548]
[1768425177911,0.002,3367.7,3367.6,1.7499103]
[1768425178823,0.002,3368.0,3367.7,0.92686548]
[1768425182842,0.002,3368.0,3367.3,0.92686548]
[1768425183137,0.002,3368.0,3367.0,0.92686548]
[1768425183336,0.002,3368.0,3367.0,1.61367263]
[1768425183537,0.002,3368.0,3367.1,0.394]
[1768425183738,0.002,3368.0,3367.0,0.92686548]
[1768425183940,0.002,3368.0,3367.2,0.92686548]
[1768425184316,0.002,3368.0,3367.3,0.95656286]
[1768425184518,0.002,3368.0,3367.3,0.92686548]
[1768425186541,0.002,3368.0,3367.4,0.92686548]
[1768425189347,0.002,3368.0,3367.1,0.394]
[1768425189348,0.004,3368.0,3367.1,0.394]
[1768425189650,0.002,3368.0,3367.1,1.32086548]
[1768425191034,0.002,3368.0,3366.9,0.001]
[1768425191035,0.002,3367.9,3366.9,0.001]
[1768425191353,0.002,3367.9,3367.0,0.394]
[1768425193325,0.002,3367.9,3367.3,0.001]
[1768425193543,0.002,3367.7,3367.0,0.394]
[1768425199764,0.002,3367.7,3367.1,0.92686548]
[1768425200333,0.002,3367.7,3367.0,0.394]
[1768425200334,0.002,3367.7,3367.2,0.98092134]
[1768425200527,0.002,3367.7,3367.2,0.95122308]
[1768425203671,0.002,3367.7,3367.3,0.96254822]
[1768425204060,0.002,3367.7,3367.4,0.96254822]
[1768425208383,0.002,3367.7,3367.5,0.96254822]
[1768425217399,0.002,3367.7,3367.6,0.96254822]
[1768425217597,0.002,3368.0,3367.7,0.96254822]
[1768425217768,0.002,3368.0,3367.9,0.96254822]
[1768425225077,0.002,3368.8,3368.0,0.96254822]
[1768425226980,0.002,3368.8,3368.2,0.96254822]
[1768425228271,0.002,3368.8,3368.4,0.96254822]
[1768425229096,0.002,3368.8,3368.5,0.96254822]
[1768425229396,0.002,3368.8,3368.6,1.74967893]
[1768425229586,0.002,3368.8,3368.7,0.96254822]
[1768425230501,0.002,3369.0,3368.8,0.9191636]
[1768425232208,0.002,3369.0,3368.6,1.70629431]
[1768425232380,0.002,3369.0,3368.7,0.9191636]
[1768425233710,0.002,3369.0,3368.6,0.78713071]
[1768425233711,0.006,3368.9,3368.0,0.9191636]
[1768425233899,0.006,3368.9,3368.1,0.394]
[1768425234210,0.006,3368.7,3367.8,0.9191636]
[1768425234410,0.006,3368.7,3367.9,0.394]
[1768425235309,2.97459229,3368.6,3367.9,0.394]
[1768425235517,3.56889896,3368.6,3367.9,0.394]
[1768425235897,0.006,3368.5,3367.9,0.394]
[1768425236116,0.006,3368.5,3367.3,0.001]
[1768425236410,0.006,3368.5,3367.4,0.394]
[1768425237418,0.1452,3368.3,3367.4,0.394]
[1768425237712,0.1452,3368.3,3367.4,1.3131636]
[1768425238018,0.1452,3368.3,3367.4,4.28280765]
[1768425238317,0.1452,3368.3,3367.4,1.3131636]
[1768425238489,0.81290438,3368.3,3367.4,1.3131636]
[1768425240731,2.96894483,3368.2,3367.4,1.3131636]
[1768425241527,0.1452,3368.1,3366.7,0.9191636]
[1768425241907,0.1452,3368.1,3366.8,0.394]
[1768425242112,0.2859,3367.9,3367.7,0.001]
[1768425242310,0.2859,3367.9,3366.9,0.394]
[1768425242509,0.2859,3367.9,3366.3,0.9191636]
[1768425242807,0.2859,3367.7,3366.9,0.394]
[1768425245225,3.2553738,3367.6,3366.9,0.394]
[1768425245430,0.62247709,3367.5,3366.9,0.394]
[1768425247234,3.59206619,3367.5,3367.0,0.9191636]
[1768425248312,3.59206619,3367.5,3366.9,0.394]
[1768425249515,3.59204246,3367.5,3367.0,0.9191636]
[1768425252637,6.56160783,3367.5,3367.0,0.9191636]
[1768425252839,0.65616078,3367.4,3366.9,0.394]
[1768425253338,0.2335703,3367.3,3366.9,0.394]
[1768425254034,3.48921038,3367.3,3366.9,0.394]
[1768425255043,3.20331038,3367.3,3366.9,0.394]
[1768425255650,0.2335703,3367.3,3366.9,0.394]
[1768425256047,0.2355703,3367.4,3366.9,1.3131636]
[1768425256433,0.2335703,3367.3,3367.0,0.9191636]
[1768425257035,3.20522469,3367.4,3367.0,0.9191636]
[1768425257351,3.20522469,3367.4,3366.9,0.394]
[1768425257650,4.38029148,3367.4,3366.9,0.394]
[1768425259874,4.38029148,3367.4,3365.8,8.25898372]
[1768425259875,0.37494,3366.3,3364.5,0.9191636]
[1768425260037,0.128,3366.9,3364.4,0.394]
[1768425260038,0.37494,3366.2,3364.7,0.9191636]
[1768425260352,0.37494,3366.2,3364.6,0.72579366]
[1768425260353,0.2335703,3366.1,3364.9,0.9191636]
[1768425260746,5.28795415,3365.8,3364.9,0.9191636]
[1768425261324,0.40188136,3366.7,3364.9,0.9191636]
[1768425261523,7.01870604,3367.0,3364.9,0.9191636]
[1768425261746,8.91053817,3366.8,3364.9,1.08365933]
[1768425262062,11.88071756,3366.8,3365.0,0.97988561]
[1768425262229,8.91053817,3366.8,3365.0,0.97988561]
[1768425263375,11.88071756,3366.8,3365.0,0.97988561]
[1768425263935,0.37494,3366.7,3365.0,0.97988561]
[1768425264261,0.37494,3366.5,3365.2,0.97988561]
[1768425264729,0.2335703,3366.4,3365.4,0.97988561]
[1768425265142,0.2335703,3366.4,3365.4,1.37388561]
[1768425265341,0.2335703,3366.4,3365.5,0.97988561]
[1768425265540,0.16072452,3366.3,3365.5,0.97988561]
[1768425266059,0.2335703,3366.1,3365.5,0.97988561]
[1768425267149,0.2335703,3366.1,3365.3,0.394]
[1768425267461,0.2335703,3366.1,3365.3,1.37388561]
[1768425268264,0.2335703,3365.9,3365.3,1.37388561]
[1768425268835,0.85109928,3365.9,3364.9,0.97988561]
[1768425269055,0.85109928,3365.9,3365.0,0.97988561]
[1768425270373,3.82213775,3365.9,3365.0,0.97988561]
[1768425270858,6.79317622,3365.9,3365.0,0.97988561]
[1768425271177,7.16811622,3365.9,3365.1,0.394]
[1768425271372,0.61752898,3365.9,3365.2,1.00960152]
[1768425271576,2.97070881,3366.2,3365.2,0.97988561]
[1768425271733,0.2335703,3366.1,3365.2,0.97988561]
[1768425272430,0.6085103,3366.1,3365.2,0.97988561]
[1768425273763,0.2335703,3365.9,3365.2,0.97988561]
[1768425275763,0.2335703,3365.9,3365.3,0.97988561]
[1768425276136,2.97099985,3365.9,3365.3,0.97988561]
[1768425276357,2.97072845,3366.2,3365.3,0.97988561]
[1768425277559,5.9414569,3366.2,3365.3,0.97988561]
[1768425279573,0.2335703,3366.1,3365.3,0.97988561]
[1768425279876,0.2335703,3365.9,3365.3,0.97988561]
[1768425281479,0.2335703,3366.0,3365.3,0.97988561]
[1768425282781,3.20448343,3366.0,3365.3,0.97988561]
[1768425285082,2.97083238,3366.1,3365.3,0.97988561]
[1768425285265,2.97074812,3366.2,3365.3,0.97988561]
[1768425285463,3.85059241,3366.2,3365.3,0.97988561]
[1768425286283,2.97051504,3366.5,3365.4,0.97988561]
[1768425286590,2.97057502,3366.4,3365.4,0.97988561]
[1768425287255,5.94053524,3366.7,3365.6,0.97988561]
[1768425287579,6.31547524,3366.7,3365.6,0.97988561]
[1768425287780,1.45777584,3366.6,3365.6,0.97988561]
[1768425289174,0.2335703,3366.3,3365.6,0.97988561]
[1768425289483,0.2335703,3366.3,3365.6,2.97122437]
[1768425289669,0.2335703,3366.8,3365.7,0.97988561]
[1768425289978,1.71484992,3366.8,3365.8,0.97988561]
[1768425290180,1.48127962,3366.8,3365.8,0.97988561]
[1768425290563,5.94018236,3366.9,3365.8,0.97988561]
[1768425290564,0.2335703,3366.7,3365.8,0.97988561]
[1768425290781,0.002,3366.0,3365.8,0.97988561]
[1768425290989,0.002,3366.3,3366.0,0.95741177]
[1768425292862,0.002,3366.3,3366.1,0.95741177]
[1768425299294,0.002,3366.3,3366.2,0.395]
[1768425301666,0.002,3366.3,3365.9,0.95741177]
[1768425301866,0.002,3366.3,3365.9,1.35241177]
[1768425302067,0.002,3366.3,3365.9,0.395]
[1768425302365,0.002,3366.3,3365.9,1.35241177]
[1768425303292,0.002,3366.3,3365.9,0.95741177]
[1768425303996,0.002,3366.3,3365.9,0.95841177]
[1768425304288,0.002,3366.0,3365.9,0.95841177]
[1768425304500,0.002,3366.0,3365.9,0.001]
[1768425304670,0.002,3366.0,3365.2,2.97156483]
[1768425304671,0.37694,3366.0,3365.0,0.95741177]
[1768425305598,0.37494,3365.8,3364.9,1.35241177]
[1768425305803,5.94194716,3365.9,3365.0,0.95741177]
[1768425306098,5.94194716,3365.9,3364.9,0.395]
[1768425306099,2.97097358,3365.9,3365.2,0.95741177]
[1768425307094,0.37494,3365.8,3365.0,0.95741177]
[1768425307293,0.37494,3365.7,3365.0,0.95741177]
[1768425307501,2.97123841,3365.6,3365.0,0.95741177]
[1768425308213,0.2335703,3365.5,3365.0,0.95741177]
[1768425308897,0.2335703,3365.5,3364.2,0.15491906]
[1768425308898,0.37494,3365.4,3364.6,0.95741177]
[1768425309076,0.2335703,3365.5,3364.7,0.95741177]
[1768425309077,0.2335703,3365.2,3364.7,0.95741177]
[1768425310100,3.20501956,3365.4,3364.7,0.95741177]
[1768425311501,0.2335703,3365.6,3364.9,0.95741177]
[1768425311688,2.97113957,3365.8,3364.9,0.95741177]
[1768425312188,0.37494,3365.8,3364.7,0.95741177]
[1768425312387,0.37494,3365.6,3364.6,1.35241177]
[1768425313587,2.97132669,3365.5,3364.7,0.95741177]
[1768425313887,5.94265338,3365.5,3364.7,0.95741177]
[1768425314403,2.97132669,3365.5,3364.7,0.95741177]
[1768425314705,4.04120953,3365.5,3364.7,0.95741177]
[1768425315712,0.2335703,3365.4,3364.7,0.95741177]
[1768425316703,2.97288533,3366.0,3364.8,0.98713121]
[1768425316910,2.97288533,3366.0,3365.1,0.95741177]
[1768425316911,2.97104219,3365.9,3365.1,0.95741177]
[1768425317108,0.2335703,3365.8,3365.1,0.95741177]
[1768425317818,3.20471542,3365.8,3365.1,0.95741177]
[1768425317991,3.85998518,3365.8,3365.1,0.95741177]
[1768425319448,0.37494,3365.7,3363.9,0.95741177]
[1768425319620,0.37494,3365.7,3364.8,0.95741177]
[1768425319998,6.31741682,3365.6,3364.8,0.95741177]
[1768425320198,0.63174168,3365.5,3364.8,0.95741177]
[1768425322224,2.97141498,3365.4,3364.8,0.95741177]
[1768425323019,0.2335703,3365.3,3364.8,0.95741177]
[1768425324121,0.2335703,3365.1,3364.6,0.95964884]
[1768425326231,2.97143278,3365.4,3364.6,0.95964884]
[1768425326232,0.2335703,3365.3,3364.6,0.95964884]
[1768425326439,3.20509697,3365.3,3364.6,0.95964884]
[1768425327433,0.2335703,3365.3,3364.6,0.95964884]
[1768425327732,6.3170637,3365.8,3364.6,0.95964884]
[1768425328225,5.94247682,3365.6,3364.6,0.95964884]
[1768425328425,0.63174168,3365.5,3364.6,0.95964884]
[1768425329048,0.37494,3365.4,3364.4,0.95964884]
[1768425329219,0.37494,3365.4,3364.3,0.395]
[1768425329405,0.37494,3365.4,3364.3,1.35464884]
[1768425329610,0.37594,3365.4,3364.4,0.95964884]
[1768425329809,0.99213969,3365.3,3364.4,0.95964884]
[1768425330247,3.96369572,3365.3,3364.4,0.95964884]
[1768425330653,0.99213969,3365.3,3364.5,0.95964884]
[1768425330934,2.97153074,3365.3,3364.5,0.95964884]
[1768425331233,0.2335703,3365.3,3364.5,0.95964884]
[1768425333135,0.2335703,3365.2,3364.5,0.95964884]
[1768425334412,3.20605295,3365.4,3364.5,0.95964884]
[1768425334808,6.1775356,3365.4,3364.6,0.95964884]
[1768425335007,6.83278316,3365.4,3364.6,0.95964884]
[1768425336619,3.86130051,3365.4,3364.6,0.95964884]
[1768425337342,3.86130051,3365.4,3363.8,5.12771917]
[1768425337343,5.28993398,3364.8,3363.8,1e-08]
[1768425337557,5.28993398,3364.8,3363.4,0.95964884]
[1768425337558,0.37294,3364.7,3363.4,0.95964884]
[1768425337711,0.41854078,3364.6,3363.8,0.15499575]
[1768425337910,0.41854078,3364.6,3363.4,0.95964884]
[1768425338510,6.36296044,3364.5,3363.4,0.95964884]
[1768425339138,0.41854078,3364.4,3363.4,0.95964884]
[1768425339342,0.41854078,3364.2,3363.4,0.95964884]
[1768425339723,0.63629604,3364.3,3363.4,0.95964884]
[1768425340754,2.97194484,3364.8,3363.4,6.9060083]
[1768425340950,0.2335703,3364.7,3363.4,3.93282641]
[1768425341118,0.2335703,3364.7,3363.4,6.9060083]
[1768425341745,0.2335703,3364.7,3363.4,3.93282641]
[1768425341972,0.2335703,3364.7,3363.5,0.95964884]
[1768425342146,0.2335703,3364.7,3363.4,5.97609127]
[1768425342147,0.2335703,3364.7,3363.7,0.95964884]
[1768425342850,0.2335703,3364.6,3363.7,0.95964884]
[1768425343823,0.65211108,3364.6,3363.7,0.95964884]
[1768425345562,0.41854078,3364.8,3363.7,0.95964884]
[1768425345722,0.41854078,3365.0,3363.7,0.95964884]
[1768425345924,0.89698199,3364.9,3363.8,0.95964884]
[1768425346333,0.47844121,3364.9,3363.8,0.95964884]
[1768425347747,0.002,3365.1,3364.0,0.95964884]
[1768425347921,0.002,3365.1,3364.2,0.95964884]
[1768425348122,2.97371592,3365.1,3364.2,0.95964884]
[1768425348323,5.94543184,3365.1,3364.2,0.95964884]
[1768425348734,2.97371592,3365.1,3364.2,0.95964884]
[1768425349057,4.11211404,3365.1,3364.2,0.95964884]
[1768425349249,0.2335703,3365.0,3364.2,0.95964884]
[1768425349933,3.20536986,3365.0,3364.2,0.95964884]
[1768425350445,0.2355703,3365.1,3364.2,0.95964884]
[1768425350958,0.2335703,3364.9,3364.2,0.95964884]
[1768425351455,0.2355703,3365.1,3364.3,0.97865965]
[1768425352057,0.2355703,3365.1,3364.4,0.97865965]
[1768425352257,0.002,3365.1,3364.4,0.97865965]
[1768425352726,0.002,3365.1,3364.5,0.395]
[1768425352921,0.002,3365.1,3364.6,0.97865965]
[1768425354554,0.002,3365.1,3364.2,4.68107821]
[1768425354744,0.002,3365.1,3363.6,2.97294519]
[1768425354745,0.002,3365.1,3364.4,1.37365965]
[1768425355150,0.002,3365.1,3364.5,0.97865965]
[1768425356069,0.002,3364.8,3364.6,0.97865965]
[1768425360164,0.002,3364.8,3364.7,0.97865965]
[1768425360374,0.002,3365.1,3364.7,0.97865965]
[1768425360375,0.002,3365.1,3364.8,0.97865965]
[1768425361445,0.002,3365.1,3364.6,0.97865965]
[1768425361672,0.42054078,3365.1,3364.1,0.97865965]
[1768425361855,0.42054078,3365.1,3364.1,0.395]
[1768425362269,0.42054078,3365.1,3363.9,0.97865965]
[1768425362454,0.42054078,3365.1,3363.9,1.37365965]
[1768425363070,0.41854078,3364.9,3364.0,0.97865965]
[1768425364278,0.41854078,3364.9,3362.2,0.97865965]
[1768425364279,0.2335703,3363.3,3362.2,0.97865965]
[1768425364760,0.2335703,3363.3,3362.3,0.97865965]
[1768425364975,0.2335703,3363.6,3362.3,0.97865965]
[1768425365143,0.2335703,3363.4,3362.4,1.37365965]
[1768425365339,0.2335703,3363.4,3362.6,0.97865965]
[1768425365544,0.2335703,3363.9,3362.7,1.00839765]
[1768425365744,0.2335703,3363.9,3362.7,0.97865965]
[1768425365973,0.2335703,3364.0,3362.7,0.97865965]
[1768425366179,0.2335703,3364.0,3362.9,0.97865965]
[1768425367059,0.2335703,3364.0,3363.1,0.97865965]
[1768425367272,3.20595682,3364.3,3363.2,0.97865965]
[1768425367576,3.20595682,3364.3,3363.3,0.97865965]
[1768425368148,6.17834334,3364.3,3363.3,0.97865965]
[1768425369572,0.41854078,3364.2,3363.2,0.395]
[1768425372073,0.41854078,3364.0,3363.2,0.395]
[1768425372279,0.63636673,3363.9,3363.2,0.395]
[1768425372997,0.63636673,3363.9,3362.1,2.97429058]
[1768425372998,0.155,3362.2,3360.4,0.08939587]
[1768425373291,0.2335703,3362.1,3361.3,0.97865965]
[1768425373448,1.54089714,3363.2,3362.2,0.97865965]
[1768425373804,1.54089714,3363.2,3362.4,0.56365965]
[1768425373953,1.54089714,3363.2,3362.6,0.97865965]
[1768425374148,1.54089714,3363.2,3362.8,0.97865965]
[1768425375373,1.47525134,3363.2,3362.9,0.97865965]
[1768425375776,1.47525134,3363.2,3362.9,0.09060129]
[1768425375981,1.47525134,3363.2,3362.8,0.43476285]
[1768425376177,1.47525134,3363.2,3362.6,1.37365965]
[1768425379382,1.47525134,3363.2,3362.7,0.97865965]
[1768425379607,0.97276318,3364.3,3362.9,0.97865965]
[1768425379759,0.97276318,3364.3,3362.6,6.34275855]
[1768425379760,0.97276318,3364.9,3363.1,0.97865965]
[1768425380102,2.97305832,3364.7,3363.1,0.97865965]
[1768425380261,2.97305832,3364.7,3363.3,0.97865965]
[1768425380262,0.001,3364.7,3363.3,0.97865965]
[1768425380601,0.69275673,3364.7,3363.5,0.92945766]
[1768425380762,0.69275673,3364.7,3363.6,1.32445766]
[1768425381399,0.69275673,3364.7,3363.7,0.97948116]
[1768425382071,0.001,3364.7,3363.7,0.97948116]
[1768425382383,0.001,3364.7,3363.7,3.95231995]
[1768425382763,0.001,3364.7,3363.8,0.97948116]
[1768425385575,0.001,3364.7,3363.9,0.97948116]
[1768425388691,0.92596557,3364.3,3363.0,3.95295187]
[1768425388892,0.92596557,3364.1,3363.1,0.395]
[1768425389362,0.62214575,3364.2,3363.2,0.97948116]
[1768425389560,0.92596557,3364.4,3363.2,0.97948116]
[1768425389764,0.92596557,3364.4,3363.3,2.97321245]
[1768425389964,3.89828148,3364.4,3363.4,0.02973181]
[1768425390290,2.97231591,3364.4,3363.4,1.00921297]
[1768425390495,2.97231591,3364.4,3363.4,0.97948116]
[1768425390684,3.65946507,3364.4,3363.4,0.97948116]
[1768425390887,7.55774655,3364.4,3363.1,1.37448116]
[1768425391092,7.55774655,3364.4,3363.2,2.97334935]
[1768425391596,4.58543064,3364.4,3363.2,3.95283051]
[1768425391799,7.55774655,3364.4,3363.2,3.95283051]
[1768425391977,4.58543064,3364.4,3363.3,5.04035426]
[1768425392297,3.65946507,3364.4,3363.4,0.97948116]
[1768425392491,6.63178098,3364.4,3363.4,0.97948116]
[1768425392892,3.65946507,3364.4,3363.4,0.97948116]
[1768425394404,3.65946507,3364.4,3363.4,3.95265413]
[1768425394574,3.65946507,3364.4,3363.5,1.78084507]
[1768425395116,0.68714916,3364.4,3363.6,0.97948116]
[1768425395316,2.9721215,3364.6,3363.6,0.97948116]
[1768425395479,0.001,3364.1,3363.6,0.97948116]
[1768425397211,0.001,3364.7,3363.7,0.97948116]
[1768425398081,0.92696557,3364.7,3363.3,0.97948116]
[1768425398284,0.92696557,3364.7,3363.4,0.395]
[1768425398481,0.92596557,3364.5,3363.4,0.395]
[1768425398900,4.88240595,3364.6,3363.4,4.34762605]
[1768425399100,6.87033315,3364.6,3363.5,0.97948116]
[1768425399302,2.97215956,3364.6,3363.5,0.97948116]
[1768425399501,2.97305168,3364.7,3363.5,0.97948116]
[1768425400511,0.001,3364.7,3363.5,0.97948116]
[1768425400717,0.001,3364.7,3363.7,0.97948116]